[Event "*** Titled Tuesday Blitz"]
[Site "Chess.com"]
[Date "2018.12.04"]
[Round "5"]
[White "KRASAVCHIK2002"]
[Black "ASVZ"]
[Result "1-0"]
[WhiteElo "2380"]
[BlackElo "2276"]
[TimeControl "180+2"]
[EndTime "14:05:58 PST"]
[Termination "KRASAVCHIK2002 won by checkmate"]

1. e4 {[%clk 0:03:01.9]} 1... e6 {[%clk 0:03:00.7]} 2. d4 {[%clk 0:03:01.9]}
2... d5 {[%clk 0:03:02.3]} 3. Nc3 {[%clk 0:03:02.6]} 3... Bb4 {[%clk 0:03:02.8]}
4. exd5 {[%clk 0:03:03.8]} 4... exd5 {[%clk 0:03:02]} 5. Bd3 {[%clk 0:03:04.3]}
5... c6 {[%clk 0:03:02.9]} 6. a3 {[%clk 0:03:02.4]} 6... Bd6 {[%clk 0:03:03.3]}
7. Qf3 {[%clk 0:02:51.3]} 7... Qh4 {[%clk 0:02:56.3]} 8. Nge2 {[%clk 0:02:33.4]}
8... Bg4 {[%clk 0:02:56.3]} 9. Qe3+ {[%clk 0:02:31.3]} 9... Ne7 {[%clk
0:02:56.7]} 10. Qg5 {[%clk 0:02:28.1]} 10... Qxg5 {[%clk 0:02:55.3]} 11. Bxg5
{[%clk 0:02:28.7]} 11... f6 {[%clk 0:02:56.7]} 12. Bf4 {[%clk 0:02:28.2]} 12...
Bxf4 {[%clk 0:02:53.5]} 13. Nxf4 {[%clk 0:02:28.7]} 13... g5 {[%clk 0:02:55.2]}
14. Nfe2 {[%clk 0:02:26.2]} 14... Nd7 {[%clk 0:02:55.2]} 15. f3 {[%clk
0:02:24.8]} 15... Bf5 {[%clk 0:02:55.5]} 16. Kd2 {[%clk 0:02:22.1]} 16... Kf7
{[%clk 0:02:56.4]} 17. Rae1 {[%clk 0:02:21.2]} 17... Rae8 {[%clk 0:02:56]} 18.
h4 {[%clk 0:02:19.4]} 18... h5 {[%clk 0:02:45.6]} 19. Ng3 {[%clk 0:01:45.2]}
19... Bxd3 {[%clk 0:02:45]} 20. Kxd3 {[%clk 0:01:44.8]} 20... Kg6 {[%clk
0:02:46.9]} 21. hxg5 {[%clk 0:01:29.3]} 21... Kxg5 {[%clk 0:02:40.6]} 22. Nd1
{[%clk 0:01:20.1]} 22... h4 {[%clk 0:02:39.6]} 23. Ne2 {[%clk 0:01:13]} 23...
Ng6 {[%clk 0:02:40.7]} 24. f4+ {[%clk 0:01:06.3]} 24... Nxf4+ {[%clk 0:02:25]}
25. Nxf4 {[%clk 0:01:05.2]} 25... Kxf4 {[%clk 0:02:26.9]} 26. Rxe8 {[%clk
0:00:55.3]} 26... Rxe8 {[%clk 0:02:26.5]} 27. Rxh4+ {[%clk 0:00:57.2]} 27... Kg3
{[%clk 0:02:26.3]} 28. Rh7 {[%clk 0:00:58.1]} 28... Nf8 {[%clk 0:02:06.2]} 29.
Rg7+ {[%clk 0:00:54.8]} 29... Kh2 {[%clk 0:02:07.4]} 30. Ne3 {[%clk 0:00:47.3]}
30... Ne6 {[%clk 0:02:06.4]} 31. Rxb7 {[%clk 0:00:43.1]} 31... Nf4+ {[%clk
0:02:07.7]} 32. Kd2 {[%clk 0:00:41]} 32... a5 {[%clk 0:01:58.6]} 33. Rf7 {[%clk
0:00:29.2]} 33... Re6 {[%clk 0:01:58.9]} 34. Rxf6 {[%clk 0:00:25.8]} 34... Rxf6
{[%clk 0:01:57.1]} 35. Ng4+ {[%clk 0:00:26.8]} 35... Kxg2 {[%clk 0:01:58.8]} 36.
Nxf6 {[%clk 0:00:28.7]} 36... Kf3 {[%clk 0:01:57.4]} 37. Nd7 {[%clk 0:00:19.1]}
37... Ke4 {[%clk 0:01:56.4]} 38. c3 {[%clk 0:00:17.9]} 38... Ne6 {[%clk
0:01:56.7]} 39. b3 {[%clk 0:00:09.4]} 39... Nc7 {[%clk 0:01:49.5]} 40. Nc5+
{[%clk 0:00:09.7]} 40... Kf4 {[%clk 0:01:50.6]} 41. a4 {[%clk 0:00:10.6]} 41...
Ne8 {[%clk 0:01:28.4]} 42. Nb7 {[%clk 0:00:10.7]} 42... Nd6 {[%clk 0:01:30]} 43.
Nxd6 {[%clk 0:00:11.1]} 43... Kf3 {[%clk 0:01:31.3]} 44. Nb7 {[%clk 0:00:12.2]}
44... Ke4 {[%clk 0:01:32.7]} 45. Nxa5 {[%clk 0:00:13.4]} 45... c5 {[%clk
0:01:34.6]} 46. dxc5 {[%clk 0:00:14.6]} 46... d4 {[%clk 0:01:36]} 47. cxd4
{[%clk 0:00:15.9]} 47... Kxd4 {[%clk 0:01:37.9]} 48. c6 {[%clk 0:00:16.6]} 48...
Kc5 {[%clk 0:01:39.8]} 49. c7 {[%clk 0:00:17.5]} 49... Kb6 {[%clk 0:01:41.7]}
50. c8=Q {[%clk 0:00:18.2]} 50... Ka7 {[%clk 0:01:43.6]} 51. Qb7# {[%clk
0:00:18.9]} 1-0

[Event "*** Titled Tuesday Blitz"]
[Site "Chess.com"]
[Date "2018.12.04"]
[Round "5"]
[White "Hydrargyrum_Girl"]
[Black "PelinGorki"]
[Result "0-1"]
[WhiteElo "2526"]
[BlackElo "2516"]
[TimeControl "180+2"]
[EndTime "14:06:01 PST"]
[Termination "PelinGorki won by resignation"]

1. d4 {[%clk 0:02:59]} 1... Nf6 {[%clk 0:02:59.8]} 2. Nc3 {[%clk 0:02:59.7]}
2... c5 {[%clk 0:02:58.2]} 3. dxc5 {[%clk 0:03:00.1]} 3... Na6 {[%clk
0:02:55.2]} 4. Nf3 {[%clk 0:02:52.6]} 4... Nxc5 {[%clk 0:02:55.6]} 5. Bg5 {[%clk
0:02:51.8]} 5... Nfe4 {[%clk 0:02:55.1]} 6. Nxe4 {[%clk 0:02:50.2]} 6... Nxe4
{[%clk 0:02:56.3]} 7. Be3 {[%clk 0:02:51.6]} 7... d5 {[%clk 0:02:55.1]} 8. c3
{[%clk 0:02:52.1]} 8... e6 {[%clk 0:02:54.6]} 9. g3 {[%clk 0:02:52.9]} 9... Be7
{[%clk 0:02:54.7]} 10. Bg2 {[%clk 0:02:53.9]} 10... O-O {[%clk 0:02:56.1]} 11.
O-O {[%clk 0:02:54.9]} 11... b5 {[%clk 0:02:53.7]} 12. Nd4 {[%clk 0:02:52.2]}
12... Bd7 {[%clk 0:02:53.5]} 13. Nb3 {[%clk 0:02:48.2]} 13... a5 {[%clk
0:02:53.5]} 14. Bxe4 {[%clk 0:02:48.8]} 14... dxe4 {[%clk 0:02:54.2]} 15. Bc5
{[%clk 0:02:47.9]} 15... a4 {[%clk 0:02:50.9]} 16. Bxe7 {[%clk 0:02:48.2]} 16...
Qxe7 {[%clk 0:02:52.3]} 17. Nd4 {[%clk 0:02:40.2]} 17... Rfd8 {[%clk 0:02:46.2]}
18. Qc1 {[%clk 0:02:37.9]} 18... e5 {[%clk 0:02:42.1]} 19. Nc2 {[%clk
0:02:38.6]} 19... Bh3 {[%clk 0:02:02.8]} 20. Rd1 {[%clk 0:02:38.8]} 20... Rxd1+
{[%clk 0:02:04.4]} 21. Qxd1 {[%clk 0:02:39.9]} 21... Rd8 {[%clk 0:02:06.3]} 22.
Qc1 {[%clk 0:02:38.1]} 22... Qd6 {[%clk 0:02:00.5]} 23. Ne3 {[%clk 0:02:14.3]}
23... Be6 {[%clk 0:01:57.7]} 24. a3 {[%clk 0:02:07.7]} 24... f5 {[%clk
0:01:56.8]} 25. Qc2 {[%clk 0:02:01.6]} 25... Bb3 {[%clk 0:01:54.8]} 26. Qc1
{[%clk 0:02:00.3]} 26... f4 {[%clk 0:01:55.1]} 27. Ng2 {[%clk 0:01:53.5]} 27...
f3 {[%clk 0:01:53.2]} 28. exf3 {[%clk 0:01:54.5]} 28... exf3 {[%clk 0:01:55.1]}
29. Ne3 {[%clk 0:01:55.6]} 29... Qd2 {[%clk 0:01:47.9]} 30. Ng4 {[%clk
0:01:06.1]} 30... Qe2 {[%clk 0:01:43.7]} 31. Qe1 {[%clk 0:00:27.7]} 31... Rd2
{[%clk 0:01:39.1]} 32. Nxe5 {[%clk 0:00:27.5]} 32... Rxb2 {[%clk 0:01:31.5]} 33.
h4 {[%clk 0:00:19.1]} 33... Ra2 {[%clk 0:01:21.6]} 34. Nxf3 {[%clk 0:00:17.3]}
34... Rxa1 {[%clk 0:01:21]} 35. Qxa1 {[%clk 0:00:15.5]} 35... Qxf3 {[%clk
0:01:22.3]} 36. Qe1 {[%clk 0:00:17.1]} 36... h6 {[%clk 0:01:09.9]} 37. Qe8+
{[%clk 0:00:17.2]} 37... Kh7 {[%clk 0:01:11.3]} 38. h5 {[%clk 0:00:18.5]} 38...
Bf7 {[%clk 0:01:06]} 39. Qe5 {[%clk 0:00:14.6]} 39... Bd5 {[%clk 0:01:03.6]} 40.
Kf1 {[%clk 0:00:15]} 40... Qd1+ {[%clk 0:01:02.1]} 0-1

[Event "*** Titled Tuesday Blitz"]
[Site "Chess.com"]
[Date "2018.12.04"]
[Round "5"]
[White "LazyIM"]
[Black "Korchmar_Vasiliy"]
[Result "0-1"]
[WhiteElo "2621"]
[BlackElo "2744"]
[TimeControl "180+2"]
[EndTime "14:06:07 PST"]
[Termination "Korchmar_Vasiliy won by resignation"]

1. e4 {[%clk 0:03:01.9]} 1... c5 {[%clk 0:03:00.6]} 2. Nf3 {[%clk 0:03:02.4]}
2... d6 {[%clk 0:03:01.6]} 3. d4 {[%clk 0:03:03.8]} 3... cxd4 {[%clk 0:03:02.8]}
4. Nxd4 {[%clk 0:03:05.7]} 4... Nf6 {[%clk 0:03:04.4]} 5. Nc3 {[%clk 0:03:07.2]}
5... Nc6 {[%clk 0:03:05.5]} 6. Bg5 {[%clk 0:03:06.3]} 6... e6 {[%clk 0:03:06.4]}
7. Qd2 {[%clk 0:03:06.7]} 7... a6 {[%clk 0:03:07.9]} 8. O-O-O {[%clk 0:03:07.4]}
8... h6 {[%clk 0:03:09.1]} 9. Bh4 {[%clk 0:02:55.8]} 9... Nxe4 {[%clk
0:03:00.8]} 10. Nxe4 {[%clk 0:02:54.8]} 10... Qxh4 {[%clk 0:03:00.4]} 11. g4
{[%clk 0:02:30.6]} 11... d5 {[%clk 0:02:54.6]} 12. Ng3 {[%clk 0:02:28.7]} 12...
Bc5 {[%clk 0:02:48.7]} 13. Nb3 {[%clk 0:02:24.6]} 13... Bb6 {[%clk 0:02:40.2]}
14. f3 {[%clk 0:02:21.1]} 14... O-O {[%clk 0:02:40.1]} 15. Kb1 {[%clk
0:02:22.2]} 15... a5 {[%clk 0:02:36.1]} 16. Bd3 {[%clk 0:02:11.4]} 16... a4
{[%clk 0:02:35.5]} 17. Nc1 {[%clk 0:02:12.7]} 17... a3 {[%clk 0:02:36.2]} 18. b3
{[%clk 0:02:12.1]} 18... Qf6 {[%clk 0:02:34.3]} 19. c3 {[%clk 0:02:07.9]} 19...
Qxf3 {[%clk 0:02:24.4]} 20. Nh5 {[%clk 0:02:02.7]} 20... e5 {[%clk 0:02:14.3]}
21. Be2 {[%clk 0:02:00.5]} 21... Qe3 {[%clk 0:02:06.8]} 22. Qc2 {[%clk 0:01:57]}
22... d4 {[%clk 0:02:00.8]} 23. Rd3 {[%clk 0:01:56.8]} 23... Qg5 {[%clk
0:02:01.2]} 24. h4 {[%clk 0:01:57.8]} 24... Qe7 {[%clk 0:02:01.6]} 25. Rg3
{[%clk 0:01:52.5]} 25... dxc3 {[%clk 0:01:56.1]} 26. g5 {[%clk 0:01:53.7]} 26...
Nd4 {[%clk 0:01:55.7]} 27. Nf6+ {[%clk 0:01:51.1]} 27... Qxf6 {[%clk 0:01:48.4]}
28. gxf6 {[%clk 0:01:50.3]} 28... Nxc2 {[%clk 0:01:49.9]} 29. Rxg7+ {[%clk
0:01:51.2]} 29... Kh8 {[%clk 0:01:51.3]} 30. Bd3 {[%clk 0:01:52.3]} 30... Rd8
{[%clk 0:01:34.3]} 31. Bxc2 {[%clk 0:01:43.4]} 31... Be6 {[%clk 0:01:24.6]} 32.
Nd3 {[%clk 0:01:39.7]} 32... Rg8 {[%clk 0:01:19.5]} 33. Rxg8+ {[%clk 0:01:32]}
33... Rxg8 {[%clk 0:01:21.4]} 34. Nxe5 {[%clk 0:01:33.4]} 34... Rg2 {[%clk
0:01:08.7]} 35. Rd1 {[%clk 0:01:29.5]} 35... Rd2 {[%clk 0:01:10]} 36. Re1 {[%clk
0:00:48]} 36... Rf2 {[%clk 0:00:50.4]} 37. Ng4 {[%clk 0:00:23.7]} 37... Rf4
{[%clk 0:00:47.2]} 38. Nxh6 {[%clk 0:00:17]} 38... Rxf6 {[%clk 0:00:47.4]} 0-1

[Event "*** Titled Tuesday Blitz"]
[Site "Chess.com"]
[Date "2018.12.04"]
[Round "5"]
[White "b_6"]
[Black "ddtru"]
[Result "0-1"]
[WhiteElo "2374"]
[BlackElo "2331"]
[TimeControl "180+2"]
[EndTime "14:06:07 PST"]
[Termination "ddtru won on time"]

1. Nf3 {[%clk 0:03:01.9]} 1... d5 {[%clk 0:03:00]} 2. g3 {[%clk 0:03:02.1]} 2...
Nf6 {[%clk 0:03:01]} 3. Bg2 {[%clk 0:03:03.5]} 3... c6 {[%clk 0:02:59]} 4. c4
{[%clk 0:03:02.6]} 4... Bf5 {[%clk 0:02:54]} 5. Qb3 {[%clk 0:02:59.7]} 5... Qb6
{[%clk 0:02:54.1]} 6. d3 {[%clk 0:02:59.9]} 6... Nbd7 {[%clk 0:02:41.8]} 7. Qxb6
{[%clk 0:02:56.9]} 7... axb6 {[%clk 0:02:35.8]} 8. Nd4 {[%clk 0:02:31.3]} 8...
Bg6 {[%clk 0:02:30.8]} 9. cxd5 {[%clk 0:02:30.9]} 9... Nxd5 {[%clk 0:02:31.5]}
10. Bxd5 {[%clk 0:02:31.1]} 10... cxd5 {[%clk 0:02:32]} 11. Nc3 {[%clk 0:02:32]}
11... e6 {[%clk 0:02:20.2]} 12. f4 {[%clk 0:02:14.3]} 12... Bc5 {[%clk
0:02:04.9]} 13. Ndb5 {[%clk 0:02:05.4]} 13... O-O {[%clk 0:02:02.1]} 14. e4
{[%clk 0:01:39.6]} 14... dxe4 {[%clk 0:01:45.8]} 15. dxe4 {[%clk 0:01:38.9]}
15... Nf6 {[%clk 0:01:38.5]} 16. e5 {[%clk 0:01:34.9]} 16... Ng4 {[%clk
0:01:32.6]} 17. h3 {[%clk 0:00:57.7]} 17... Nf2 {[%clk 0:01:25.7]} 18. Rh2
{[%clk 0:00:58.9]} 18... Nd3+ {[%clk 0:01:17]} 19. Kf1 {[%clk 0:01:00.2]} 19...
Rfd8 {[%clk 0:01:07]} 20. a3 {[%clk 0:00:49.2]} 20... Nb4 {[%clk 0:00:47.2]} 21.
Rd2 {[%clk 0:00:35.6]} 21... Nc2 {[%clk 0:00:39.7]} 22. Ra2 {[%clk 0:00:23.7]}
22... Rxd2 {[%clk 0:00:30.8]} 23. Bxd2 {[%clk 0:00:24.4]} 23... Rd8 {[%clk
0:00:32.2]} 24. Be1 {[%clk 0:00:09.8]} 24... Bd3+ {[%clk 0:00:32.3]} 25. Ne2
{[%clk 0:00:07.5]} 25... Bxb5 {[%clk 0:00:28.3]} 26. b4 {[%clk 0:00:07.5]} 26...
Nd4 {[%clk 0:00:22]} 27. bxc5 {[%clk 0:00:06.4]} 27... bxc5 {[%clk 0:00:20.7]}
28. Bf2 {[%clk 0:00:04.8]} 28... Nxe2 {[%clk 0:00:20.7]} 29. Kg2 {[%clk
0:00:02.4]} 29... Nd4 {[%clk 0:00:20.4]} 30. Rb2 {[%clk 0:00:03.4]} 30... Bc6+
{[%clk 0:00:21.1]} 31. Kf1 {[%clk 0:00:03.7]} 31... b5 {[%clk 0:00:21.8]} 0-1

[Event "*** Titled Tuesday Blitz"]
[Site "Chess.com"]
[Date "2018.12.04"]
[Round "5"]
[White "Markov_Mikhail"]
[Black "Kimster98"]
[Result "1-0"]
[WhiteElo "2608"]
[BlackElo "2558"]
[TimeControl "180+2"]
[EndTime "14:06:08 PST"]
[Termination "Markov_Mikhail won by resignation"]

1. c4 {[%clk 0:03:01.9]} 1... e6 {[%clk 0:02:54.1]} 2. Nf3 {[%clk 0:03:01.7]}
2... d5 {[%clk 0:02:56]} 3. g3 {[%clk 0:03:02.5]} 3... Nf6 {[%clk 0:02:56.2]} 4.
Bg2 {[%clk 0:03:02.2]} 4... dxc4 {[%clk 0:02:57.8]} 5. Qa4+ {[%clk 0:03:00.5]}
5... Bd7 {[%clk 0:02:58.9]} 6. Qxc4 {[%clk 0:03:00.1]} 6... c5 {[%clk
0:03:00.1]} 7. O-O {[%clk 0:02:58.1]} 7... Bc6 {[%clk 0:03:00]} 8. b3 {[%clk
0:02:46.6]} 8... Nbd7 {[%clk 0:02:59.5]} 9. Rd1 {[%clk 0:02:44.8]} 9... Rc8
{[%clk 0:02:44.8]} 10. Bb2 {[%clk 0:02:42]} 10... b5 {[%clk 0:02:36.3]} 11. Qc2
{[%clk 0:02:42.4]} 11... Bd6 {[%clk 0:02:31]} 12. d3 {[%clk 0:02:40.7]} 12...
O-O {[%clk 0:02:28.6]} 13. Nbd2 {[%clk 0:02:40.9]} 13... a6 {[%clk 0:02:22]} 14.
Rac1 {[%clk 0:02:39]} 14... e5 {[%clk 0:02:05.4]} 15. Qb1 {[%clk 0:02:13.3]}
15... Qe7 {[%clk 0:02:03.6]} 16. Nf1 {[%clk 0:02:05.2]} 16... Nd5 {[%clk
0:01:29.5]} 17. e4 {[%clk 0:01:56.5]} 17... Nc7 {[%clk 0:01:29.8]} 18. d4 {[%clk
0:01:54.7]} 18... Bb7 {[%clk 0:01:16.5]} 19. dxe5 {[%clk 0:01:48.4]} 19... Nxe5
{[%clk 0:01:17.6]} 20. Ne3 {[%clk 0:01:41.7]} 20... Nxf3+ {[%clk 0:01:13.7]} 21.
Bxf3 {[%clk 0:01:42.6]} 21... Be5 {[%clk 0:01:13.7]} 22. Nf5 {[%clk 0:01:41]}
22... Qe6 {[%clk 0:01:14.4]} 23. Rxc5 {[%clk 0:01:29.2]} 23... Bxb2 {[%clk
0:01:03.8]} 24. Qxb2 {[%clk 0:01:31.1]} 24... f6 {[%clk 0:01:05.3]} 25. Qc1
{[%clk 0:01:09.4]} 25... Na8 {[%clk 0:00:49.8]} 26. Nd6 {[%clk 0:01:09.3]} 26...
Rxc5 {[%clk 0:00:47.5]} 27. Qxc5 {[%clk 0:01:11.2]} 27... Qe7 {[%clk 0:00:46.6]}
28. Nxb7 {[%clk 0:01:10.9]} 28... Qxb7 {[%clk 0:00:48.5]} 29. Kg2 {[%clk
0:01:12.1]} 29... Qc8 {[%clk 0:00:41.8]} 30. Qxc8 {[%clk 0:00:54.7]} 30... Rxc8
{[%clk 0:00:43.7]} 31. Rd6 {[%clk 0:00:55.9]} 31... Rc2 {[%clk 0:00:40.9]} 32.
Rd8+ {[%clk 0:00:54.4]} 32... Kf7 {[%clk 0:00:41.6]} 33. Rxa8 {[%clk 0:00:55.9]}
33... Rxa2 {[%clk 0:00:43.5]} 34. b4 {[%clk 0:00:56.7]} 34... Ra4 {[%clk
0:00:44.4]} 35. Ra7+ {[%clk 0:00:55.9]} 35... Kf8 {[%clk 0:00:45.1]} 36. h4
{[%clk 0:00:56.3]} 36... Kg8 {[%clk 0:00:41.7]} 37. h5 {[%clk 0:00:56.4]} 37...
h6 {[%clk 0:00:40.3]} 38. e5 {[%clk 0:00:34]} 38... fxe5 {[%clk 0:00:36.3]} 39.
Bd5+ {[%clk 0:00:35.5]} 39... Kf8 {[%clk 0:00:36.7]} 40. Rf7+ {[%clk 0:00:36.8]}
40... Ke8 {[%clk 0:00:38.1]} 41. Rxg7 {[%clk 0:00:38.4]} 41... Rxb4 {[%clk
0:00:40]} 42. Rg6 {[%clk 0:00:39.8]} 42... a5 {[%clk 0:00:41]} 43. Rxh6 {[%clk
0:00:40.9]} 43... Rd4 {[%clk 0:00:41.7]} 44. Bc6+ {[%clk 0:00:41.6]} 1-0

[Event "*** Titled Tuesday Blitz"]
[Site "Chess.com"]
[Date "2018.12.04"]
[Round "5"]
[White "51616516516"]
[Black "goodnigth"]
[Result "1-0"]
[WhiteElo "2249"]
[BlackElo "2337"]
[TimeControl "180+2"]
[EndTime "14:06:08 PST"]
[Termination "51616516516 won on time"]

1. b3 {[%clk 0:03:01.9]} 1... a5 {[%clk 0:02:58.9]} 2. e4 {[%clk 0:02:48.7]}
2... a4 {[%clk 0:02:59.1]} 3. d4 {[%clk 0:02:46.4]} 3... axb3 {[%clk 0:02:57.1]}
4. cxb3 {[%clk 0:02:46.7]} 4... e6 {[%clk 0:02:54.4]} 5. Nf3 {[%clk 0:02:44.5]}
5... d5 {[%clk 0:02:42.7]} 6. e5 {[%clk 0:02:34.6]} 6... c5 {[%clk 0:02:43.5]}
7. Bb5+ {[%clk 0:02:33.6]} 7... Bd7 {[%clk 0:02:43.9]} 8. Bxd7+ {[%clk 0:02:32]}
8... Nxd7 {[%clk 0:02:45.8]} 9. O-O {[%clk 0:02:33]} 9... Ne7 {[%clk 0:02:43.9]}
10. Nc3 {[%clk 0:02:04]} 10... Nf5 {[%clk 0:02:44.2]} 11. Bg5 {[%clk 0:01:57.4]}
11... Qb6 {[%clk 0:02:41.5]} 12. Na4 {[%clk 0:01:54.6]} 12... Qb5 {[%clk
0:02:21.5]} 13. dxc5 {[%clk 0:01:50.2]} 13... Bxc5 {[%clk 0:01:40.3]} 14. Nxc5
{[%clk 0:01:19.5]} 14... Nxc5 {[%clk 0:01:35.4]} 15. Nd4 {[%clk 0:01:19.6]}
15... Nxd4 {[%clk 0:01:31.1]} 16. Qxd4 {[%clk 0:01:21.5]} 16... O-O {[%clk
0:01:19.6]} 17. Qg4 {[%clk 0:01:13.4]} 17... Qd3 {[%clk 0:01:10.7]} 18. Rfe1
{[%clk 0:00:53.4]} 18... Rfc8 {[%clk 0:00:57.8]} 19. Re3 {[%clk 0:00:49.9]}
19... Qg6 {[%clk 0:00:41.1]} 20. Qh4 {[%clk 0:00:46.3]} 20... Rxa2 {[%clk
0:00:33]} 21. Rc1 {[%clk 0:00:30.6]} 21... Qc2 {[%clk 0:00:21.5]} 22. Rh3 {[%clk
0:00:21.8]} 22... Nxb3 {[%clk 0:00:07.1]} 23. Rf1 {[%clk 0:00:11.6]} 23... h6
{[%clk 0:00:03.1]} 24. Bxh6 {[%clk 0:00:08.1]} 24... Qg6 {[%clk 0:00:02.5]} 25.
Bg5 {[%clk 0:00:04.9]} 1-0

[Event "*** Titled Tuesday Blitz"]
[Site "Chess.com"]
[Date "2018.12.04"]
[Round "5"]
[White "johnathan113"]
[Black "jefferyx"]
[Result "0-1"]
[WhiteElo "2545"]
[BlackElo "2755"]
[TimeControl "180+2"]
[EndTime "14:06:13 PST"]
[Termination "jefferyx won on time"]

1. e4 {[%clk 0:03:01.7]} 1... e5 {[%clk 0:03:00.2]} 2. Nf3 {[%clk 0:03:02.5]}
2... Nc6 {[%clk 0:03:01.7]} 3. d4 {[%clk 0:03:04]} 3... exd4 {[%clk 0:03:02.7]}
4. Nxd4 {[%clk 0:03:05.9]} 4... Qf6 {[%clk 0:03:02.6]} 5. Nb3 {[%clk 0:03:03.9]}
5... Qg6 {[%clk 0:02:54.5]} 6. Nc3 {[%clk 0:03:02]} 6... Nf6 {[%clk 0:02:55.3]}
7. f3 {[%clk 0:03:03.1]} 7... Bd6 {[%clk 0:02:51.7]} 8. g3 {[%clk 0:02:43.7]}
8... Be5 {[%clk 0:02:44.6]} 9. Be3 {[%clk 0:02:36.4]} 9... O-O {[%clk
0:02:41.7]} 10. Qd2 {[%clk 0:02:35.7]} 10... d5 {[%clk 0:02:42.9]} 11. Nxd5
{[%clk 0:02:26.9]} 11... Bxb2 {[%clk 0:02:39.7]} 12. Rb1 {[%clk 0:02:21.5]}
12... Nxd5 {[%clk 0:02:31.5]} 13. exd5 {[%clk 0:02:00.9]} 13... Ne5 {[%clk
0:02:31.9]} 14. Be2 {[%clk 0:01:47.3]} 14... Ba3 {[%clk 0:02:30.5]} 15. O-O
{[%clk 0:01:30.2]} 15... Re8 {[%clk 0:02:30.3]} 16. Bc5 {[%clk 0:01:16]} 16...
Bxc5+ {[%clk 0:02:27.8]} 17. Nxc5 {[%clk 0:01:17.9]} 17... b6 {[%clk 0:02:20.7]}
18. Ne4 {[%clk 0:01:11.3]} 18... Bf5 {[%clk 0:02:21.5]} 19. Qf4 {[%clk
0:01:08.7]} 19... c6 {[%clk 0:02:07.5]} 20. c4 {[%clk 0:01:04.5]} 20... cxd5
{[%clk 0:01:58.3]} 21. cxd5 {[%clk 0:01:06.4]} 21... Nxf3+ {[%clk 0:01:56.5]}
22. Bxf3 {[%clk 0:00:58.2]} 22... Bxe4 {[%clk 0:01:58.4]} 23. Bxe4 {[%clk
0:00:44.1]} 23... Rxe4 {[%clk 0:02:00.3]} 24. Qc7 {[%clk 0:00:44.3]} 24... h5
{[%clk 0:02:01.7]} 25. d6 {[%clk 0:00:39.3]} 25... Rf8 {[%clk 0:01:04]} 26. d7
{[%clk 0:00:39.3]} 26... Qg5 {[%clk 0:01:03.9]} 27. Rbd1 {[%clk 0:00:31]} 27...
Re2 {[%clk 0:01:04.8]} 28. Rd3 {[%clk 0:00:14.5]} 28... Rd8 {[%clk 0:00:44.4]}
29. Rc1 {[%clk 0:00:14.7]} 29... Kh7 {[%clk 0:00:37]} 30. Rc2 {[%clk 0:00:13]}
30... Rxd7 {[%clk 0:00:31.2]} 31. Rxd7 {[%clk 0:00:09.3]} 31... Qe3+ {[%clk
0:00:31.7]} 0-1

[Event "*** Titled Tuesday Blitz"]
[Site "Chess.com"]
[Date "2018.12.04"]
[Round "5"]
[White "eldur16"]
[Black "Orest_Vovk"]
[Result "1-0"]
[WhiteElo "2645"]
[BlackElo "2412"]
[TimeControl "180+2"]
[EndTime "14:06:14 PST"]
[Termination "eldur16 won by resignation"]

1. e4 {[%clk 0:03:01.9]} 1... h6 {[%clk 0:02:59.5]} 2. d4 {[%clk 0:03:01.4]}
2... g5 {[%clk 0:03:00.5]} 3. Nc3 {[%clk 0:03:01.7]} 3... Bg7 {[%clk 0:02:58.1]}
4. Be3 {[%clk 0:03:01.7]} 4... c5 {[%clk 0:02:56.6]} 5. d5 {[%clk 0:03:00.7]}
5... Bxc3+ {[%clk 0:02:56.7]} 6. bxc3 {[%clk 0:03:00.7]} 6... Qa5 {[%clk
0:02:55.6]} 7. Bd2 {[%clk 0:02:55.3]} 7... d6 {[%clk 0:02:54.1]} 8. c4 {[%clk
0:02:55.1]} 8... Qa3 {[%clk 0:02:55.1]} 9. Bd3 {[%clk 0:02:54.5]} 9... Nf6
{[%clk 0:02:53.8]} 10. Ne2 {[%clk 0:02:54.8]} 10... Nbd7 {[%clk 0:02:52.4]} 11.
Nc3 {[%clk 0:02:52.9]} 11... Ne5 {[%clk 0:02:27.6]} 12. Rb1 {[%clk 0:02:51]}
12... a6 {[%clk 0:02:14.8]} 13. h4 {[%clk 0:02:35.3]} 13... gxh4 {[%clk
0:02:08.3]} 14. Rxh4 {[%clk 0:02:34.6]} 14... Rg8 {[%clk 0:02:09.3]} 15. Kf1
{[%clk 0:02:33.5]} 15... b5 {[%clk 0:01:46.7]} 16. Rb3 {[%clk 0:02:23.7]} 16...
Qa5 {[%clk 0:01:47.4]} 17. Nxb5 {[%clk 0:02:23.9]} 17... Qd8 {[%clk 0:01:48]}
18. Nc3 {[%clk 0:02:20.5]} 18... h5 {[%clk 0:01:35]} 19. Ne2 {[%clk 0:02:11.7]}
19... a5 {[%clk 0:01:18.3]} 20. Nf4 {[%clk 0:01:57.8]} 20... Ba6 {[%clk
0:01:14.7]} 21. Qe2 {[%clk 0:01:57.9]} 21... Qd7 {[%clk 0:01:09.1]} 22. Nxh5
{[%clk 0:01:54.3]} 22... Nxh5 {[%clk 0:01:08.2]} 23. Rxh5 {[%clk 0:01:54]} 23...
Qa4 {[%clk 0:00:46.6]} 24. Bc3 {[%clk 0:01:49.6]} 24... Qxa2 {[%clk 0:00:40.2]}
25. Bxe5 {[%clk 0:01:37.1]} 25... dxe5 {[%clk 0:00:38.3]} 26. g3 {[%clk
0:01:10]} 26... a4 {[%clk 0:00:36.9]} 27. Rb6 {[%clk 0:01:10.6]} 27... a3 {[%clk
0:00:36.5]} 28. Kg2 {[%clk 0:01:05.1]} 28... Qa1 {[%clk 0:00:36.1]} 29. Rh1
{[%clk 0:00:39.6]} 29... Qd4 {[%clk 0:00:32.4]} 30. Rb3 {[%clk 0:00:30.8]} 30...
Bxc4 {[%clk 0:00:12.9]} 31. Bxc4 {[%clk 0:00:26.6]} 31... Ra4 {[%clk 0:00:14]}
32. Bb5+ {[%clk 0:00:23.4]} 32... Kf8 {[%clk 0:00:14.3]} 33. Bxa4 {[%clk
0:00:22.6]} 33... Qxa4 {[%clk 0:00:15.3]} 34. Rb8+ {[%clk 0:00:21.9]} 34... Kg7
{[%clk 0:00:16]} 35. Qg4+ {[%clk 0:00:21.8]} 35... Kf6 {[%clk 0:00:17.2]} 36.
Qf5+ {[%clk 0:00:22.3]} 1-0